bitfinex/quotes_ETHUSD_20220120
["timestamp","ask_amount","ask_price","bid_price","bid_amount"]
[1642654048566,11.96236648,3124.9,3124.8,0.01021745]
[1642654048766,13.26236648,3124.9,3124.8,0.01021745]
[1642654049166,13.39036648,3124.9,3124.8,0.01021745]
[1642654049969,15.00779785,3124.9,3124.8,0.01021745]
[1642654050813,10.85178196,3124.9,3124.8,0.01021745]
[1642654051112,11.18582124,3124.9,3124.8,0.01021745]
[1642654053416,11.18582124,3124.9,3124.8,0.00137604]
[1642654054667,11.05782124,3124.9,3124.8,0.00137604]
[1642654055666,11.35782124,3124.9,3124.8,0.00137604]
[1642654057871,11.05782124,3124.9,3124.8,0.00137604]
[1642654059219,10.05782124,3124.9,3124.8,0.00137604]
[1642654059418,13.30590863,3124.9,3124.8,0.00137604]
[1642654059819,10.75782124,3124.9,3124.8,0.00137604]
[1642654060020,9.75782124,3124.9,3124.8,0.00137604]
[1642654060220,12.32210612,3124.9,3124.8,0.00137604]
[1642654060423,9.75782124,3124.9,3124.8,0.00137604]
[1642654062768,9.42378196,3124.9,3124.8,0.00137604]
[1642654063072,9.26473196,3124.9,3124.8,0.00137604]
[1642654063268,9.26372499,3124.9,3124.8,0.00137604]
[1642654066421,3.44172499,3124.9,3124.8,0.00137604]
[1642654074228,3.56972499,3124.9,3124.8,0.00137604]
[1642654077270,3.44172499,3124.9,3124.8,0.00137604]
[1642654082534,5.20077499,3124.9,3124.8,0.00137604]
[1642654082733,7.99233749,3124.9,3124.8,0.00137604]
[1642654082933,6.23328749,3124.9,3124.8,0.00137604]
[1642654083538,6.66128749,3124.9,3124.8,0.00137604]
[1642654083739,6.36128749,3124.9,3124.8,0.00137604]
[1642654084668,6.66128749,3124.9,3124.8,0.00137604]
[1642654084870,6.36128749,3124.9,3124.8,0.00137604]
[1642654085472,6.12745747,3124.9,3124.8,0.00137604]
[1642654088074,3.56972499,3124.9,3124.8,0.00137604]
[1642654088320,3.44172499,3124.9,3124.8,0.00137604]
[1642654088523,5.98289763,3124.9,3124.8,0.00137604]
[1642654088720,3.44172499,3124.9,3124.8,0.00137604]
[1642654090722,6.00534132,3124.9,3124.8,0.00137604]
[1642654091527,3.44172499,3124.9,3124.8,0.00137604]
[1642654107171,3.44172499,3124.9,3123.3,0.01]
[1642654107172,0.02090854,3124.5,3123.3,0.01]
[1642654107379,0.01246349,3123.5,3123.3,0.01]
[1642654107676,4.75,3123.3,3122.5,0.01]
[1642654107874,0.01283185,3122.7,3122.5,0.01]
[1642654108070,0.28705,3122.6,3122.5,0.01]
[1642654108269,0.466,3122.6,3122.5,0.01]
[1642654108475,3.13481972,3123.2,3122.5,0.03191515]
[1642654108674,2.72460764,3123.1,3122.5,0.03191515]
[1642654108875,2.72460764,3123.1,3122.6,0.02134672]
[1642654109475,0.466,3123.2,3122.6,0.02134672]
[1642654110576,0.466,3123.2,3123.1,1.50159159]
[1642654110819,0.466,3123.2,3123.1,2.84147795]
[1642654111019,0.466,3123.2,3123.1,2.85998256]
[1642654111221,0.466,3123.2,3123.1,2.85998266]
[1642654112627,0.466,3123.2,3123.1,2.19111637]
[1642654113023,0.71954438,3123.2,3123.1,2.19111637]
[1642654113224,0.71954438,3123.2,3123.1,2.19025251]
[1642654114581,0.25354438,3123.2,3123.1,2.19025251]
[1642654114771,0.25354438,3123.2,3123.1,4.69025251]
[1642654115173,0.25354438,3123.2,3123.1,4.69025295]
[1642654115375,0.25354438,3123.2,3123.1,2.19025295]
[1642654117879,0.25354438,3123.2,3123.1,2.19025306]
[1642654118524,0.25354438,3123.2,3123.1,2.19025308]
[1642654118824,0.25354438,3123.2,3123.1,5.09025308]
[1642654119026,11.5611,3124.2,3123.2,4.75]
[1642654119027,0.128,3124.2,3123.2,4.75]
[1642654119226,0.8736,3124.3,3123.3,3.13750472]
[1642654119424,0.8736,3124.3,3123.3,4.45624927]
[1642654119626,0.8736,3124.3,3123.4,0.01679933]
[1642654119824,0.8736,3124.3,3123.4,0.01817614]
[1642654120228,0.8736,3124.3,3123.6,1.19607095]
[1642654120427,0.8736,3124.3,3123.6,1.19744776]
[1642654120625,0.8736,3124.3,3124.2,1.30931996]
[1642654120828,0.8736,3124.3,3124.2,2.63573092]
[1642654121025,3.59742652,3124.3,3124.2,2.64798287]
[1642654122872,0.8736,3124.3,3124.2,2.64798287]
[1642654131478,3.9767,3124.6,3124.2,2.64798287]
[1642654131877,3.9767,3124.6,3124.3,0.01168352]
[1642654132080,3.9767,3124.6,3124.3,0.01306027]
[1642654132479,3.9767,3124.6,3124.4,0.0111151]
[1642654132778,3.9767,3124.6,3124.4,0.01249185]
[1642654133181,3.9767,3124.6,3124.5,0.01054668]
[1642654133426,6.70033023,3124.6,3124.5,0.01192343]
[1642654139175,6.69952241,3124.6,3124.5,0.01192343]
[1642654146575,11.14284303,3124.6,3124.5,0.01192343]
[1642654146778,11.60884303,3124.6,3124.5,0.01192343]
[1642654147076,0.02040028,3124.4,3123.2,1.2285]
[1642654147277,3.31763023,3124.3,3123.2,1.2285]
[1642654147475,5.57312893,3124.2,3123.9,1.27407418]
[1642654147676,3.31763023,3124.1,3123.9,1.27407418]
[1642654147875,2.72363023,3124.0,3123.9,1.27407418]
[1642654148075,3.18963023,3124.0,3123.9,1.27407418]
[1642654148322,3.18963023,3124.0,3123.9,1.27748472]
[1642654150127,5.68786782,3124.0,3123.9,1.27748472]
[1642654150727,3.18963023,3124.0,3123.9,1.27748472]
[1642654151931,2.72363023,3124.0,3123.9,1.27748472]
[1642654152773,0.128,3124.3,3123.9,1.27748472]
[1642654152774,2.72363023,3124.2,3123.9,1.27748472]
[1642654152972,2.72363023,3124.1,3123.9,1.27748472]
[1642654153170,0.81772007,3124.4,3124.0,0.00284211]
[1642654153375,0.48640028,3124.4,3124.0,0.00284211]
[1642654156423,1.28675688,3124.4,3124.0,0.00284211]
[1642654156625,0.52072123,3124.4,3124.0,0.00284211]
[1642654156822,0.48640028,3124.4,3124.0,0.00284211]
[1642654158024,1.48640028,3124.4,3124.0,0.00284211]
[1642654158224,4.1,3124.2,3123.9,1.22691629]
[1642654158427,4.228,3124.2,3123.9,1.22691629]
[1642654158627,1.0,3124.1,3123.9,1.22691629]
[1642654158829,2.928,3124.0,3123.9,1.22691629]
[1642654159026,0.128,3124.0,3123.9,1.22691629]
[1642654159872,0.128,3124.1,3123.9,1.22691629]
[1642654161882,3.41668922,3124.1,3123.9,1.22691629]
[1642654162077,3.41668922,3124.1,3122.8,4.8685]
[1642654162078,2.62216442,3124.0,3122.8,4.8685]
[1642654162477,2.92216442,3124.0,3122.9,0.00625266]
[1642654162879,0.8005065,3123.9,3122.9,0.00625266]
[1642654163078,2.93817634,3123.8,3122.9,0.00625266]
[1642654163324,2.93817634,3123.8,3123.4,1.31252889]
[1642654163530,0.128,3123.8,3123.4,1.31252889]
[1642654163729,0.128,3123.8,3123.5,0.00284212]
[1642654164330,0.128,3123.8,3123.4,1.26537101]
[1642654164534,0.00113685,3123.7,3123.4,1.26537101]
[1642654168478,2.7253791,3123.7,3123.4,1.26537101]
[1642654171828,0.00113685,3123.7,3123.4,1.26537101]
[1642654172627,0.00113685,3123.7,3123.5,1.23228711]
[1642654172827,0.00113685,3123.7,3123.6,1.61853802]
[1642654173028,0.00113685,3123.7,3123.5,2.22758711]
[1642654173430,0.00113685,3123.7,3123.6,5.25324382]
[1642654173630,0.00113685,3123.7,3123.6,3.65]
[1642654174231,0.00113685,3123.7,3123.5,2.22758711]
[1642654176675,0.00113685,3123.7,3123.6,5.19419243]
[1642654177076,0.00113685,3123.7,3123.6,25.22419243]
[1642654177276,0.00113685,3123.7,3123.6,25.39379243]
[1642654178731,0.00113685,3123.7,3123.6,23.8776]
[1642654179131,2.72369964,3124.3,3123.8,18.73]
[1642654179330,2.72369964,3124.3,3123.9,0.128]
[1642654179530,0.00284211,3124.2,3124.0,1.3326633]
[1642654179931,0.00227369,3124.1,3124.0,1.3326633]
[1642654180333,0.00227369,3124.1,3124.0,2.77385837]
[1642654182276,0.00227369,3124.1,3124.0,3.07385837]
[1642654183783,0.00227369,3124.1,3124.0,2.77385837]
[1642654192785,0.00227369,3124.1,3124.0,1.44119507]
[1642654201338,0.00144248,3124.1,3124.0,1.44119507]
[1642654207006,0.00144248,3124.1,3124.0,2.41059507]
[1642654208836,0.00144248,3124.1,3124.0,2.71059507]
[1642654212580,0.00144248,3124.1,3124.0,5.41079304]
[1642654212982,0.00144248,3124.1,3124.0,5.71079304]
[1642654213183,0.00144248,3124.1,3124.0,25.44079304]
[1642654213387,0.00144248,3124.1,3124.0,26.03479304]
[1642654213588,4.248e-05,3124.1,3124.0,26.03479304]
[1642654213788,4.248e-05,3124.1,3124.0,23.33459507]
[1642654214087,0.02040028,3124.4,3124.1,4.75]
[1642654214386,0.02040028,3124.4,3124.3,24.27979]
[1642654214586,0.00340661,3124.7,3124.4,5.87041543]
[1642654214788,0.00340661,3124.7,3124.5,2.04756426]
[1642654214987,0.00340661,3124.7,3124.5,2.34756426]
[1642654215186,0.00340661,3124.7,3124.5,3.34756426]
[1642654215587,0.00340661,3124.7,3124.5,2.34756426]
[1642654216032,0.00340661,3124.7,3124.5,3.34756426]
[1642654216732,0.00340661,3124.7,3124.5,3.21956426]
[1642654217932,0.00340661,3124.7,3124.5,3.51956426]
[1642654222089,2.72274003,3125.5,3124.5,22.24956426]
[1642654222289,2.72274003,3125.5,3124.7,0.79984]
[1642654222488,0.0073895,3125.4,3124.7,1.39984]
[1642654222689,2.72274003,3125.3,3124.7,1.39984]
[1642654222889,2.72956111,3125.3,3124.7,1.39984]
[1642654223088,0.00625266,3125.2,3124.7,1.39984]
[1642654223337,0.00625266,3125.2,3124.7,0.79984]
[1642654223338,0.29076393,3125.2,3124.7,0.79984]
[1642654223533,0.00469837,3125.1,3124.7,1.39984]
[1642654224032,0.00412995,3125.0,3124.7,1.39984]
[1642654224433,0.00356153,3124.9,3124.7,1.39984]
[1642654224833,0.0029931,3124.8,3124.7,1.09984]
[1642654225032,0.0029931,3124.8,3124.7,19.82984]
[1642654225434,0.0029931,3124.8,3124.7,20.82984]
[1642654226037,0.0029931,3124.8,3124.7,21.12984]
[1642654227183,0.0029931,3124.8,3124.7,21.92953]
[1642654227784,0.0029931,3124.8,3124.7,22.39553]
[1642654228383,2.62878894,3125.7,3124.8,4.75]
[1642654228586,3.9812,3125.8,3125.1,18.73]
[1642654228785,0.00454739,3125.6,3125.3,0.79966]
[1642654228985,0.00454739,3125.6,3125.3,1.09966]
[1642654229186,3.9812,3125.8,3125.3,1.09966]
[1642654229187,0.00397897,3125.5,3125.3,1.09966]
[1642654229585,0.28821386,3125.4,3125.3,1.09966]
[1642654230933,0.00341054,3125.4,3125.3,1.09966]
[1642654234140,0.00341054,3125.4,3125.3,8.44413288]
[1642654234340,0.00341054,3125.4,3125.3,27.60203288]
[1642654234603,0.00341054,3125.4,3125.3,26.00756]
[1642654234801,0.00341054,3125.4,3125.3,25.70756]
[1642654235010,0.00341054,3125.4,3125.3,26.00756]
[1642654235800,0.00341054,3125.4,3125.3,27.12696]
[1642654238011,6.7278,3126.6,3125.5,18.73]
[1642654238209,6.7278,3126.6,3125.9,18.73]
[1642654238443,0.00568424,3126.4,3126.1,18.73]
[1642654238647,0.00568424,3126.4,3126.2,2.59937489]
[1642654238844,6.9184,3127.4,3126.3,20.17092416]
[1642654239044,6.9184,3127.4,3127.1,1.33189658]
[1642654239045,2.72165124,3127.3,3127.1,1.33189658]
[1642654239245,2.72165124,3127.3,3127.2,1.09426046]
[1642654239545,2.73245129,3127.3,3127.2,1.09426046]
[1642654239748,3.01675615,3127.3,3127.2,1.09426046]
[1642654240847,2.73245129,3127.3,3127.2,1.09426046]
[1642654242484,0.01080005,3127.3,3127.2,1.09426046]
[1642654248336,0.01080005,3127.3,3127.2,1.39426046]
[1642654251790,0.01080005,3127.3,3127.2,4.05094284]
[1642654253941,0.01080005,3127.3,3127.2,5.05094284]
[1642654255546,0.01080005,3127.3,3127.2,2.39426046]
[1642654256147,0.01080005,3127.3,3127.2,1.39426046]
[1642654256546,0.01080005,3127.3,3127.2,2.39426046]
[1642654257390,0.01080005,3127.3,3127.2,2.39341487]
[1642654257792,0.01080005,3127.3,3127.2,23.80715948]
[1642654258598,0.01080005,3127.3,3127.2,23.93505948]
[1642654259599,0.01080005,3127.3,3127.2,23.80715948]
[1642654259899,0.00995999,3127.3,3127.2,23.80715948]
[1642654261439,0.00995999,3127.3,3127.2,5.07715948]
[1642654262640,0.00995999,3127.3,3127.2,2.39341487]
[1642654263446,0.00995999,3127.3,3127.2,4.78375171]
[1642654264592,0.00995999,3127.3,3127.2,2.39341487]
[1642654265194,0.00995999,3127.3,3127.2,4.79851731]
[1642654266796,0.00995999,3127.3,3127.2,4.7802984]
[1642654268441,0.00995999,3127.3,3127.2,2.39341487]
[1642654276171,0.00995999,3127.3,3127.2,4.84210232]
[1642654276368,0.00995999,3127.3,3127.2,5.14210232]
[1642654280800,0.00914718,3127.3,3127.2,5.14210232]
[1642654282900,0.00914718,3127.3,3127.2,2.69341487]
[1642654283546,0.00914718,3127.3,3127.2,1.09426046]
[1642654283845,2.73004667,3127.3,3127.2,1.09426046]
[1642654284247,2.73004667,3127.3,3127.2,3.49519835]
[1642654284446,2.73004667,3127.3,3127.2,1.09426046]
[1642654285047,2.73004667,3127.3,3127.2,1.39426046]
[1642654285248,2.73004667,3127.3,3127.2,2.39426046]
[1642654288494,0.00914718,3127.3,3127.2,2.39426046]
[1642654291043,0.00914718,3127.3,3127.2,4.78338535]
[1642654291245,0.00914718,3127.3,3127.2,2.39426046]
[1642654291442,0.00914718,3127.3,3127.2,4.78608932]
[1642654291645,0.00914718,3127.3,3127.2,2.39426046]
[1642654294746,0.00914718,3127.3,3127.2,4.78038869]
[1642654294944,0.00914718,3127.3,3127.2,2.39426046]
[1642654295144,0.00914718,3127.3,3127.2,4.81659889]
[1642654295545,0.00914718,3127.3,3127.2,2.39426046]
[1642654297645,0.00914718,3127.3,3127.2,4.77233157]
[1642654297844,0.00914718,3127.3,3127.2,2.39426046]
[1642654300248,0.00914718,3127.3,3127.2,4.82140692]
[1642654300449,0.00914718,3127.3,3127.2,2.39426046]
[1642654300650,0.00914718,3127.3,3127.2,4.80215517]
[1642654301251,0.00914718,3127.3,3127.2,2.39426046]
[1642654302102,0.00914718,3127.3,3127.2,1.09426046]
[1642654302707,5.28000961,3127.3,3127.2,1.09426046]
[1642654303708,2.73000961,3127.3,3127.2,1.09426046]
[1642654304407,2.72901882,3127.3,3127.2,1.09426046]
[1642654304607,2.72815748,3127.3,3127.2,1.09426046]
[1642654305207,0.00729505,3127.3,3127.2,1.09426046]
[1642654305406,0.00729505,3127.3,3127.2,1.39426046]
[1642654305844,2.72809037,3127.3,3127.2,1.39426046]
[1642654306043,0.00729505,3127.3,3127.2,1.39426046]
[1642654308649,0.00729505,3127.3,3127.2,1.09426046]
[1642654308850,2.72810593,3127.3,3127.2,1.09426046]
[1642654309049,0.00729505,3127.3,3127.2,1.09426046]
[1642654309450,2.72811322,3127.3,3127.2,1.09426046]
[1642654310600,0.00729505,3127.3,3127.2,1.09426046]
[1642654310801,2.72808692,3127.3,3127.2,1.09426046]
[1642654315252,0.00729505,3127.3,3127.2,1.09426046]
[1642654315452,2.72812102,3127.3,3127.2,1.09426046]
[1642654315650,0.00729505,3127.3,3127.2,1.09426046]
[1642654316453,2.72810972,3127.3,3127.2,1.09426046]
[1642654322353,0.00729505,3127.3,3127.2,1.09426046]
[1642654322960,2.72811079,3127.3,3127.2,3.78866437]
[1642654323153,0.00729505,3127.3,3127.2,1.39426046]
[1642654324800,0.00729505,3127.3,3127.2,1.52216046]
[1642654325604,2.72807622,3127.3,3127.2,1.52216046]
[1642654327004,0.00729505,3127.3,3127.2,1.52216046]
[1642654328007,0.00729505,3127.3,3127.2,1.22216046]
[1642654329061,2.72803093,3127.3,3127.2,1.09426046]
[1642654329453,2.7270414,3127.3,3127.2,1.09426046]
[1642654330054,0.00630552,3127.3,3127.2,1.09426046]
[1642654332300,2.72706144,3127.3,3127.2,1.09426046]
[1642654334108,0.00630552,3127.3,3127.2,1.09426046]
[1642654334308,2.72713997,3127.3,3127.2,1.09426046]
[1642654334509,2.72713997,3127.3,3127.2,1.39426046]
[1642654334708,0.00630552,3127.3,3127.2,4.0636783]
[1642654334908,2.72709942,3127.3,3127.2,1.09426046]
[1642654335409,0.00630552,3127.3,3127.2,1.09426046]
[1642654335608,2.72710936,3127.3,3127.2,1.09426046]
[1642654336453,0.00630552,3127.3,3127.2,1.09426046]
[1642654337252,2.72709555,3127.3,3127.2,1.09426046]
[1642654337453,0.00630552,3127.3,3127.2,1.09426046]
[1642654340597,2.72706975,3127.3,3127.2,1.09426046]
[1642654341202,2.72618709,3127.3,3127.2,1.09426046]
[1642654344656,0.00542286,3127.3,3127.2,1.09426046]
[1642654345657,0.00542286,3127.3,3127.2,3.67420365]
[1642654345860,0.00542286,3127.3,3127.2,23.84880365]
[1642654346060,0.00542286,3127.3,3127.2,24.91171311]
[1642654346856,0.00542286,3127.3,3127.2,25.37771311]
[1642654348700,0.00542286,3127.3,3127.2,25.31480365]
[1642654349304,0.00542286,3127.3,3127.2,6.58480365]
[1642654349704,0.00542286,3127.3,3127.2,2.70486046]
[1642654349903,0.00542286,3127.3,3127.2,1.86026046]
[1642654350104,0.00542286,3127.3,3127.2,4.27598545]
[1642654350703,0.00542286,3127.3,3127.2,5.57598545]
[1642654351149,0.00542286,3127.3,3127.2,4.27598545]
[1642654351348,0.00542286,3127.3,3127.2,5.57598545]
[1642654351651,0.00542286,3127.3,3127.2,3.16026046]
[1642654351850,0.00542286,3127.3,3127.2,1.86026046]
[1642654352050,0.00542286,3127.3,3127.2,5.53608889]
[1642654352250,0.00542286,3127.3,3127.2,4.53608889]
[1642654352451,0.00542286,3127.3,3127.2,3.16026046]
[1642654352653,0.00542286,3127.3,3127.2,1.86026046]
[1642654353252,0.00542286,3127.3,3127.2,4.2497622]
[1642654353753,0.00542286,3127.3,3127.2,22.9797622]
[1642654353952,0.00542286,3127.3,3127.2,23.2797622]
[1642654354155,0.00542286,3127.3,3127.2,24.2797622]
[1642654354800,0.00542286,3127.3,3127.2,24.4076622]
[1642654355599,0.00542286,3127.3,3127.2,25.2067822]
[1642654356000,0.00542286,3127.3,3127.2,6.3488822]
[1642654356199,0.00542286,3127.3,3127.2,2.65938046]
[1642654356401,0.00542286,3127.3,3127.2,1.86026046]
[1642654357406,0.00542286,3127.3,3127.2,4.24519961]
[1642654357604,0.00542286,3127.3,3127.2,3.77919961]
[1642654358347,0.00542286,3127.3,3127.2,1.39426046]
[1642654359154,0.00542286,3127.3,3127.2,3.78818496]
[1642654360255,0.00542286,3127.3,3127.2,22.51818496]
[1642654361154,0.00542286,3127.3,3127.2,23.81818496]
[1642654361554,0.00542286,3127.3,3127.2,23.94608496]
[1642654361959,0.00542286,3127.3,3127.2,24.74520496]
[1642654362205,0.00438821,3127.3,3127.2,24.74520496]
[1642654365845,4.2402,3128.4,3127.2,24.74520496]
[1642654365846,4.2402,3128.4,3127.5,0.79904]
[1642654366046,2.72010228,3128.3,3127.9,0.31900557]
[1642654366248,2.72578651,3128.3,3127.9,0.31900557]
[1642654366447,2.72010228,3128.2,3127.9,0.31900557]
[1642654366846,0.00454739,3128.1,3127.9,0.31900557]
[1642654367047,2.72018924,3128.0,3127.9,0.31900557]
[1642654367249,2.7241682,3128.0,3127.9,0.31900557]
[1642654367447,2.7241682,3128.0,3127.5,20.32807]
[1642654367648,0.00397896,3128.0,3127.5,20.32807]
[1642654367847,0.00341054,3127.9,3127.5,20.32807]
[1642654368151,0.00284212,3127.8,3127.5,20.32807]
[1642654368348,0.00284212,3127.8,3127.5,18.73]
[1642654368553,0.00227369,3127.7,3127.5,18.73]
[1642654368955,0.00170527,3127.6,3127.5,18.73]
[1642654369153,0.00170527,3127.6,3127.5,19.73]
[1642654372004,0.00170527,3127.6,3127.5,18.73]
[1642654374054,0.00170527,3127.6,3127.5,19.73]
[1642654374854,0.00170527,3127.6,3127.5,18.73]
[1642654377904,0.00076477,3127.6,3127.5,18.73]
[1642654378106,0.00076477,3127.6,3127.5,19.03]
[1642654378305,0.00076477,3127.6,3127.5,20.33]
[1642654388210,0.00076477,3127.6,3127.5,1.3]
[1642654388465,0.00076477,3127.6,3127.3,0.1278]
[1642654388665,0.00076477,3127.6,3127.2,2.69426046]
[1642654388864,0.00076477,3127.6,3127.2,2.39426046]
[1642654389063,0.00076477,3127.6,3127.3,0.0009405]
[1642654399260,2.72015276,3127.9,3127.3,0.0009405]
[1642654399704,0.00190162,3127.8,3127.3,0.0009405]
[1642654400099,0.00133319,3127.7,3127.3,0.0009405]
[1642654400500,0.00049439,3127.7,3127.3,0.0009405]
[1642654400901,0.00049439,3127.7,3127.3,0.0017793]
[1642654403956,2.72064715,3127.7,3127.3,0.0017793]
[1642654404455,2.72015276,3127.6,3127.5,0.0057499]
[1642654404654,0.00049439,3127.7,3127.5,0.0057499]
[1642654405856,2.72064715,3127.7,3127.5,0.0057499]
[1642654406057,0.00049439,3127.7,3127.5,0.0057499]
[1642654408705,0.00049439,3127.7,3127.5,0.00473156]
[1642654409305,0.00049439,3127.7,3127.3,0.00752033]
[1642654409706,0.00049439,3127.7,3127.4,0.00121088]
[1642654410407,0.00049439,3127.7,3127.4,0.12901088]
[1642654410710,0.00049439,3127.7,3127.4,0.00121088]
[1642654410962,0.00049439,3127.7,3127.4,18.73121088]
[1642654411160,0.00049439,3127.7,3127.6,18.73]
[1642654411361,3.9124,3129.2,3127.8,18.73]
[1642654411564,7.89176407,3129.1,3127.9,3.56549522]
[1642654411762,0.00284212,3128.2,3127.9,4.58829522]
[1642654411962,0.00284212,3128.2,3127.9,3.2166]
[1642654412167,0.0022737,3128.1,3127.9,3.2166]
[1642654412366,0.0022737,3128.1,3128.0,4.84767]
[1642654412566,2.71968639,3129.0,3128.0,7.36196936]
[1642654412765,2.71968639,3129.0,3128.1,0.1278]
[1642654412970,0.00682109,3128.9,3128.1,1.4278]
[1642654413167,2.71968639,3128.8,3128.1,1.7278]
[1642654413368,2.72593905,3128.8,3128.1,0.3]
[1642654413566,2.72537063,3128.7,3128.1,0.3]
[1642654413766,2.71968639,3128.6,3128.4,1.11515884]
[1642654413967,2.72480221,3128.6,3128.4,1.11515884]
[1642654414171,2.72423378,3128.5,3128.4,1.71515884]
[1642654415904,0.00454739,3128.5,3128.4,1.71515884]
[1642654416104,0.00361253,3128.5,3128.4,1.71515884]
[1642654416903,0.00361253,3128.5,3128.4,2.71515884]
[1642654417303,0.00361253,3128.5,3128.4,1.71515884]
[1642654417507,0.00361253,3128.5,3128.4,2.71515884]
[1642654418659,0.00361253,3128.5,3128.4,1.71515884]
[1642654418859,0.00361253,3128.5,3128.4,2.71515884]
[1642654419362,0.00361253,3128.5,3128.4,1.71515884]
[1642654419558,0.00361253,3128.5,3128.4,2.71515884]
[1642654419759,0.00361253,3128.5,3128.4,1.71515884]
[1642654419959,0.00361253,3128.5,3128.4,2.71515884]
[1642654420359,0.00361253,3128.5,3128.4,1.71515884]
[1642654420560,0.00361253,3128.5,3128.4,2.71515884]
[1642654420761,0.00361253,3128.5,3128.4,1.71515884]
[1642654420961,0.00361253,3128.5,3128.4,2.71515884]
[1642654421361,0.00361253,3128.5,3128.4,1.71515884]
[1642654421565,0.00361253,3128.5,3128.4,2.71515884]
[1642654421761,0.00361253,3128.5,3128.4,1.71515884]
[1642654421963,0.00361253,3128.5,3128.4,2.71515884]
[1642654422456,0.00361253,3128.5,3128.4,1.71515884]
[1642654422657,0.00361253,3128.5,3128.4,2.71515884]
[1642654422856,0.00361253,3128.5,3128.4,1.71515884]
[1642654423058,0.00361253,3128.5,3128.4,2.71515884]
[1642654423258,0.00361253,3128.5,3128.4,1.71515884]
[1642654423458,0.00361253,3128.5,3128.4,2.71515884]
[1642654423858,0.00361253,3128.5,3128.4,1.71515884]
[1642654424059,0.00361253,3128.5,3128.4,2.71515884]
[1642654424357,0.00361253,3128.5,3128.4,1.71515884]
[1642654427863,0.00361253,3128.5,3128.4,3.15409761]
[1642654428063,0.00361253,3128.5,3128.4,4.15409761]
[1642654428263,0.00361253,3128.5,3128.4,2.71515884]
[1642654429468,0.00361253,3128.5,3128.4,1.71515884]
[1642654429730,0.00361253,3128.5,3128.4,2.71515884]
[1642654429913,0.00361253,3128.5,3128.4,1.71515884]
[1642654430115,0.00361253,3128.5,3128.4,2.71515884]
[1642654430315,0.00361253,3128.5,3128.4,1.71515884]
[1642654430515,0.00361253,3128.5,3128.4,3.51393884]
[1642654430716,0.00361253,3128.5,3128.4,2.51393884]
[1642654430916,0.00361253,3128.5,3128.4,3.51393884]
[1642654431918,0.00361253,3128.5,3128.4,22.24393884]
[1642654432519,0.00361253,3128.5,3128.4,22.37173884]
[1642654432720,0.00361253,3128.5,3128.4,22.24393884]
[1642654433351,0.00361253,3128.5,3128.4,22.37173884]
[1642654433754,0.00361253,3128.5,3128.4,21.57295884]
[1642654435058,0.00361253,3128.5,3128.4,2.71515884]
[1642654435458,0.00361253,3128.5,3128.4,1.71515884]
[1642654435656,0.00361253,3128.5,3128.4,1.11515884]
[1642654437123,0.00361253,3128.5,3128.4,1.71515884]
[1642654437930,0.00361253,3128.5,3128.4,1.41515884]
[1642654438828,0.00361253,3128.5,3128.4,1.71515884]
[1642654440031,0.00269291,3128.5,3128.4,1.71515884]
[1642654452106,0.00269291,3128.5,3128.4,4.08210059]
[1642654452402,0.00269291,3128.5,3128.4,1.71515884]
[1642654452608,0.00269291,3128.5,3128.4,2.71515884]
[1642654452808,0.00269291,3128.5,3128.4,1.71515884]
[1642654457063,0.00269291,3128.5,3128.3,1.0]
[1642654457264,0.00269291,3128.5,3127.4,7.05261]
[1642654457265,0.00269291,3128.5,3127.8,1.0]
[1642654457464,0.00212449,3128.4,3127.4,3.8567]
[1642654457865,0.00155606,3128.3,3127.5,0.00299132]
[1642654458263,0.00098764,3128.2,3127.9,1.41468664]
[1642654458666,0.00326134,3128.6,3127.9,1.41468664]
[1642654458965,0.00269291,3128.5,3127.9,1.41468664]
[1642654459366,0.00212449,3128.4,3127.9,1.41468664]
[1642654459802,0.00155606,3128.3,3127.9,1.41468664]
[1642654460204,0.00098764,3128.2,3127.9,1.41468664]
[1642654460608,0.00269291,3128.5,3127.9,1.41468664]
[1642654461008,0.00115508,3128.4,3127.9,1.41468664]
[1642654461204,0.00115508,3128.4,3128.0,0.00111862]
[1642654461415,2.72279661,3128.8,3128.0,0.00111862]
[1642654461807,0.00286035,3128.7,3128.0,0.00111862]
[1642654462208,0.00229193,3128.6,3128.0,0.00111862]
[1642654462607,0.0017235,3128.5,3128.0,0.00111862]
[1642654463008,0.00115508,3128.4,3128.0,0.00111862]
[1642654463210,0.00115508,3128.4,3128.0,0.00018483]
[1642654463464,0.00152044,3128.3,3128.0,0.00018483]
[1642654463863,0.00095202,3128.2,3128.0,0.00018483]
[1642654464264,0.00379414,3128.7,3128.0,0.00018483]
[1642654464465,2.71936784,3128.6,3128.0,0.00018483]
[1642654464663,2.71936784,3128.5,3128.0,0.00018483]
[1642654464864,2.71936784,3128.4,3128.0,0.00018483]
[1642654465065,2.71936784,3128.3,3128.0,0.00018483]
[1642654465264,0.00152044,3128.3,3128.0,0.00018483]
[1642654465464,0.00095202,3128.2,3128.0,0.00018483]
[1642654465867,2.72411057,3128.8,3128.0,0.00018483]
[1642654466066,2.71974801,3128.7,3128.0,0.00018483]
[1642654466266,2.72354215,3128.7,3128.0,0.00018483]
[1642654466466,2.72297373,3128.6,3128.0,0.00018483]
[1642654466665,2.71974801,3128.5,3128.0,0.00018483]
[1642654466868,2.71974801,3128.4,3128.0,0.00018483]
[1642654467109,2.71974801,3128.3,3128.0,0.00018483]
[1642654467308,2.71974801,3128.2,3128.0,0.00018483]
[1642654467609,0.00095202,3128.2,3128.0,0.00018483]
[1642654473572,0.00095202,3128.2,3127.8,0.00132167]
[1642654473969,0.00095202,3128.2,3127.4,0.00359537]
[1642654474169,1.63723176,3128.2,3127.4,0.00359537]
[1642654474371,4.22262395,3128.1,3127.4,0.00359537]
[1642654474611,4.2542187,3128.0,3127.0,1.49678025]
[1642654474817,4.2542187,3128.0,3127.1,0.00530064]
[1642654475017,2.71969888,3127.9,3127.1,0.00530064]
[1642654476016,2.71969888,3127.9,3127.1,1.00530064]
[1642654476219,2.71969888,3127.9,3127.1,0.00530064]
[1642654476416,2.71969888,3127.9,3127.2,0.00473221]
[1642654476619,1.45119263,3127.8,3127.1,0.00530064]
[1642654476819,2.71969888,3127.7,3127.1,0.00530064]
[1642654477018,1.50645485,3127.6,3126.8,0.00700591]
[1642654477219,3.18569888,3127.5,3126.7,0.00757433]
[1642654477417,0.466,3127.5,3126.6,0.00814275]
[1642654485986,1.52474673,3127.4,3126.6,0.00814275]
[1642654486286,0.766,3127.4,3126.6,0.00814275]
[1642654486480,10.98847251,3127.3,3126.6,0.00814275]
[1642654486684,8.2675,3127.3,3125.8,2.45607224]
[1642654486884,8.1396,3127.3,3125.8,3.87130905]
[1642654487085,8.1396,3127.3,3125.9,0.01212172]
[1642654487086,1.16465396,3127.0,3125.9,0.01212172]
[1642654487486,1.16465396,3127.0,3125.8,0.01269014]
[1642654487690,1.16465396,3127.0,3125.8,1.01269014]
[1642654488087,1.16465396,3127.0,3126.0,1.35765488]